Cogmind - Beta 15 @@@ ROGUE MODE // 2025.09.21 @ 17:48:47 Player: Blue Result: Destroyed by G-50 Soldier with Heavy Laser Performance ------------- Evolutions (4) 2000 Regions Visited (9) 1800 Robots Destroyed (37) 185 Value Destroyed (768) 768 Prototype IDs (20) 400 Alien Tech Used (0) 0 Bonus (1140) 1140 TOTAL SCORE: 6293 Bonus ------- Follower Combat Kills 40 Registered with UFD 300 Met Optimus in HQ 500 Met Data Miner 300 Cogmind --------- Core Integrity 0/850 Matter 265/300 Energy 100/100 System Corruption 1% Temperature Cool (14) Movement Flying (35) Location -5/Proximity Caves Parts ------- > --- POWER (2) -------- (None) > --- PROPULSION (4) --- VTOL Module > --- UTILITY (7) ------ Advanced Visual Processing Unit Signal Interpreter Advanced Signal Interpreter Propulsion Shielding Improved Hacking Suite > --- WEAPON (2) ------- (None) > --- INVENTORY (5) ---- Improved Cryofiber Web Improved Heat Sink Large Matter Pod (150) Improved Kinecellerator Improved System Shield Peak State ------------ > --- POWER ------------ Fission Core Fission Core > --- PROPULSION ------- Improved Linear Gravjet Improved Linear Gravjet Improved Linear Gravjet Improved Linear Gravjet > --- UTILITY ---------- Improved Heat Sink Advanced Weight Redist. System Advanced Visual Processing Unit Advanced Sensor Array Signal Interpreter Makeshift Light Armor Plating Improved Hacking Suite > --- WEAPON ----------- Thermic Laser Makeshift Axe > --- INVENTORY -------- Energy Well Large Matter Pod Improved Sensor Array DRS Beacon [Rating: 72] Favorites ----------- Power Fission Core Engine Ion Engine Power Core Fission Core Propulsion Improved Linear Gravjet Treads Light Treads Leg Aluminum Leg Wheel Wheel Hover Unit Improved Linear Gravjet Flight Unit VTOL Module Utility Huge Storage Unit Device Advanced Weight Redist. System Storage Huge Storage Unit Processor Signal Interpreter Hackware Improved Hacking Suite Protection Makeshift Light Armor Plating Weapon Battle Cannon Energy Gun Thermic Laser Energy Cannon Subdweller Beam Cannon Ballistic Gun High-powered Shotgun Ballistic Cannon Battle Cannon Launcher Grenade Launcher Special Weapon Mining Laser Impact Weapon Great Maul Slashing Weapon Makeshift Axe Build | -11 -10 -10 -10 -8 -6 -6 -6 -6 -5 ------- Run | Yrd Mat Min Sub Scr Fac Low Low Dat Pro Slots Evolved 8 | . . . . . 8 . . . . Power 1 | . . . . . 1 . . . . Propulsion 2 | . . . . . 2 . . . . Utility 5 | . . . . . 5 . . . . Weapon . | . . . . . . . . . . Parts Attached 63 | 7 5 4 4 12 20 4 . . 7 Power 6 | 1 . 1 . 2 2 . . . . Engine 4 | 1 . 1 . 2 . . . . . Core 2 | . . . . . 2 . . . . Reactor . | . . . . . . . . . . Propulsion 18 | 2 2 . . 6 4 . . . 4 Treads 4 | . 2 . . 2 . . . . . Leg 3 | . . . . 3 . . . . . Wheel 3 | 2 . . . 1 . . . . . Hover 4 | . . . . . 4 . . . . Flight 4 | . . . . . . . . . 4 Utility 17 | 2 1 1 . 2 9 1 . . 1 Device 6 | 1 . 1 . . 4 . . . . Storage 2 | 1 1 . . . . . . . . Processor 3 | . . . . . 2 1 . . . Hackware 2 | . . . . . 2 . . . . Protection 4 | . . . . 2 1 . . . 1 Artifact . | . . . . . . . . . . Weapon 22 | 2 2 2 4 2 5 3 . . 2 Energy Gun 4 | 2 . . . . 2 . . . . Energy Cannon 1 | . . . . . 1 . . . . Ballistic Gun 8 | . 2 . 2 2 1 1 . . . Ballistic Cannon 2 | . . 1 1 . . . . . . Launcher 1 | . . 1 . . . . . . . Special Weapon 1 | . . . 1 . . . . . . Impact Weapon 3 | . . . . . . 2 . . 1 Slashing Weapon 2 | . . . . . 1 . . . 1 Piercing Weapon . | . . . . . . . . . . Special Melee Weapon . | . . . . . . . . . . Unidentified Prototypes 3 | . . 1 . 1 1 . . . . Parts Lost 24 | . . 5 . 4 . 1 . . 14 Power 3 | . . 1 . . . . . . 2 Propulsion 10 | . . 2 . 2 . . . . 6 Utility 4 | . . . . . . 1 . . 3 Weapon 7 | . . 2 . 2 . . . . 3 Highest Loss Streak 6 | . . 5 . 2 . 1 . . 6 To Critical Strikes . | . . . . . . . . . . Average Backups 14 | 1 10 17 20 23 11 4 5 5 5 Power . | . 1 . . . . . . . . Propulsion . | 1 2 1 1 . . . . . . Utility 10 | . 4 13 15 15 8 3 4 5 5 Weapon 3 | . 3 3 4 6 2 . . . . Tool/Special . | . . . . . . . . . . Unused Backups 23 | . . . . 6 10 1 1 . 5 Power . | . . . . . . . . . . Propulsion . | . . . . . . . . . . Utility 21 | . . . . 6 9 1 . . 5 Weapon 2 | . . . . . 1 . 1 . . Tool/Special . | . . . . . . . . . . Average Slot Usage (%) 95 | . 100 99 100 99 94 92 93 93 84 Engine 8 | . 14 13 14 14 4 . . . . Core 4 | . . . . . 7 13 13 13 11 Treads 14 | . 2 23 28 27 . . . . . Wheel 1 | . 25 4 . . . . . . . Hover 6 | . . . . . 9 20 20 20 14 Device 11 | . 14 14 14 7 14 14 13 13 12 Storage 8 | . 14 14 14 14 4 . . . . Processor 6 | . . . . . 7 18 20 20 20 Hackware 2 | . . . . . 5 6 6 6 6 Protection 4 | . . . . 6 11 6 6 6 5 Ballistic Gun 11 | . 27 14 14 14 2 4 6 6 5 Ballistic Cannon 7 | . . 12 10 14 . . . . . Impact Weapon 1 | . . . . . . 3 6 6 5 Peak Build Rating 72 | 7 8 17 20 27 72 72 66 66 66 Average Rating 34 | 5 7 9 18 23 49 65 65 66 57 On Entrance 33 | . 7 8 17 20 16 72 66 66 66 Naked Turns . | . . . . . . . . . . Heaviest Build 120 | 13 88 91 93 99 120 33 31 31 31 Greatest Support 50 | 26 40 40 40 50 49 39 39 29 39 Greatest Overweight (x) 11 | 2 3 3 2 9 11 1 1 1 2 Average Overweight (x) 1 | . 2 2 2 1 . . . 1 . Largest Inventory Capacity 25 | 8 25 25 25 25 25 5 5 5 5 Average Capacity 17 | 6 23 25 25 25 20 5 5 5 5 Most Carried 25 | 3 16 19 25 25 24 5 5 5 5 Average Carried 15 | 2 10 17 20 24 13 4 4 5 5 Final Capacity 25 | 8 25 25 25 25 5 5 5 5 5 Final Carried 25 | 3 16 19 25 25 4 5 5 5 5 Class Distribution -------------------- 63% | Mutant 15% | Assassin 13% | Derelict-Assassin 4% | Scout 3% | Scavenger-Mutant Dominant Class ---------------- Mutant | -10/Materials Mutant | -10/Mines Mutant | -10/Subcaves Mutant | -8/Scraptown Scavenger-Mutant | -6/Factory Assassin | -6/Lower Caves Assassin | -6/Lower Caves Assassin | -6/Data Miner Derelict-Assassin | -5/Proximity Caves Resources | -11 -10 -10 -10 -8 -6 -6 -6 -6 -5 ----------- Run | Yrd Mat Min Sub Scr Fac Low Low Dat Pro Matter Collected 2411 | 255 323 909 376 229 150 106 19 . 44 Remotely . | . . . . . . . . . . Salvage Created 1064 | 36 323 200 51 169 103 60 . . 122 Parts 62 | 4 24 8 2 10 5 1 . . 8 Haulers Intercepted 1 | . . . . . 1 . . . . Recyclers Shooed 3 | . . 3 . . . . . . . Parts Field Recycled . | . . . . . . . . . . Retrieved Matter . | . . . . . . . . . . Parts Self-Destructed 48 | . . . 4 10 . 29 . . 5 Prevented 4 | . . . . . . 3 . . 1 Kills | -11 -10 -10 -10 -8 -6 -6 -6 -6 -5 ------- Run | Yrd Mat Min Sub Scr Fac Low Low Dat Pro Combat Hostiles Destroyed 26 | . 13 4 1 3 . . . . 5 Melee 2 | . . . . . . . . . 2 Guns 18 | . 13 2 . 2 . . . . 1 Cannons 4 | . . 2 1 1 . . . . . Classes Destroyed 15 | 1 5 2 1 2 1 1 . . 2 Worker 3 | . . 3 . . . . . . . Tunneler 2 | 2 . . . . . . . . . Hauler 1 | . . . . . 1 . . . . Recycler 2 | . 1 1 . . . . . . . Operator 3 | . 2 . . . 1 . . . . Watcher 1 | . 1 . . . . . . . . Swarmer 15 | . 12 . . . . . . . 3 Saboteur 1 | . . . . . . . . . 1 Grunt 4 | . 1 3 . . . . . . . Sentry 1 | . . . . . . . . . 1 Subdweller 1 | . . . 1 . . . . . . Ranger 1 | . . . . 1 . . . . . Scrapper 2 | . . . . 2 . . . . . Samaritan 1 | . . . . . . 1 . . . Assembled 1 | . . 1 . . . . . . . Best Kill Streak 8 | 2 8 3 1 3 1 . . . 3 Combat Bots Only 7 | . 7 1 1 3 . . . . 3 Max Kills in Single Turn 2 | 1 2 1 1 1 1 1 . . 1 Gunslinging 1 | . 1 . . . . . . . . Exploded . | . . . . . . . . . . Melee 1 | . . . . . . . . . 1 Uniques/NPCs Destroyed . | . . . . . . . . . . Combat | -11 -10 -10 -10 -8 -6 -6 -6 -6 -5 -------- Run | Yrd Mat Min Sub Scr Fac Low Low Dat Pro Hostile Shots Fired 339 | . 47 34 5 51 18 11 5 . 168 Missed 111 | . 11 10 1 8 9 4 3 . 65 Hits 228 | . 36 24 4 43 9 7 2 . 103 Melee 3 | . . . . . . 3 . . . Projectile 225 | . 36 24 4 43 9 4 2 . 103 Critical Strikes 5 | . . 1 . 2 . . . . 2 Actively Blocked 1 | . . . . . . . . . 1 Damage Taken 3443 | . 279 300 83 649 153 153 39 . 1787 Core 997 | . 59 40 . 44 12 . . . 842 Absorbed by Shields . | . . . . . . . . . . Redirected to Shielding 28 | . . . . . . . . . 28 Core Remaining (%) 71 | 100 . . . 42 . . . . . Volleys Fired 101 | 6 36 30 10 11 1 . . . 7 Largest 2 | 2 2 2 2 2 1 . . . 1 Hottest 100 | 100 40 50 100 58 60 . . . 24 Shots Fired 182 | 12 72 53 14 22 1 . 1 . 7 Gun 138 | 12 72 30 4 11 1 . 1 . 7 Cannon 36 | . . 21 4 11 . . . . . Launcher 2 | . . 2 . . . . . . . Special 6 | . . . 6 . . . . . . Kinetic 161 | . 72 51 8 22 . . 1 . 7 Thermal 18 | 12 . . 6 . . . . . . Explosive 2 | . . 2 . . . . . . . Electromagnetic 1 | . . . . . 1 . . . . Robot Hit Streak 10 | 4 10 5 4 5 . . . . 3 Robot Miss Streak 5 | 1 5 2 1 4 2 . . . 2 Penetration Max . | . . . . . . . . . . Secondary Targets 1 | . 1 . . . . . . . . Max Gunslinging Chain 1 | . 1 . . . . . . . . Shots Hit Robots 117 | 9 40 30 6 12 1 4 . . 15 Core Hits 55 | 2 20 15 2 8 2 . . . 6 Critical Kills . | . . . . . . . . . . Critical Parts Destroyed 2 | . . . . . . . . . 2 Critical Strikes 7 | 4 . . . . . . . . 3 Burn 4 | 4 . . . . . . . . . Smash 3 | . . . . . . . . . 3 Melee Attacks 36 | . . . . . 7 7 . . 22 Impact 22 | . . . . . . . . . 22 Slashing 14 | . . . . . 7 7 . . . Piercing . | . . . . . . . . . . Sneak Attacks 4 | . . . . . 1 2 . . 1 Combat Hostiles . | . . . . . . . . . . Follow-up Attacks . | . . . . . . . . . . Damage Inflicted 2595 | 112 571 514 86 266 178 218 . . 650 Guns 1298 | 112 571 257 49 190 . . . . 119 Cannons 280 | . . 178 37 65 . . . . . Explosions 172 | . . 79 . . 93 . . . . Melee 800 | . . . . . 85 218 . . 497 Ramming 45 | . . . . 11 . . . . 34 Kinetic 1466 | . 571 435 86 255 . . . . 119 Thermal 112 | 112 . . . . . . . . . Explosive 172 | . . 79 . . 93 . . . . Electromagnetic . | . . . . . . . . . . Impact 497 | . . . . . . . . . 497 Slashing 303 | . . . . . 85 218 . . . Piercing . | . . . . . . . . . . Highest Corruption 1 | . . . . . 1 1 1 1 1 Average Corruption 1 | . . . . . 1 1 1 1 1 Corruption Purged . | . . . . . . . . . . Corruption Blocked . | . . . . . . . . . . Effects 27 | . . . . . . 7 5 . 15 Message Errors 6 | . . . . . . 1 1 . 4 Matter Fused 4 | . . . . . . 1 2 . 1 Heat Flow Errors 7 | . . . . . . 5 1 . 1 Energy Discharges 1 | . . . . . . . . . 1 Data Loss (minor) 7 | . . . . . . . . . 7 Misfires 1 | . . . . . . . 1 . . Alerts 1 | . . . . . . . . . 1 Overload Shots . | . . . . . . . . . . Overflow Damage 300 | . . 3 . . 11 103 . . 183 Projectiles 3 | . . 3 . . . . . . . Explosions 11 | . . . . . 11 . . . . Melee 286 | . . . . . . 103 . . 183 Knockbacks 7 | . . 3 . 2 . . . . 2 Impact 3 | . . . . 1 . . . . 2 Kinetic 4 | . . 3 . 1 . . . . . Secondary . | . . . . . . . . . . Self-Inflicted Damage 101 | . . . . . 86 . . . 15 Shots 1 | . . . . . 1 . . . . Rammed 9 | . . . . . . . . . 9 Targets Rammed 10 | . . . . 1 . . . . 9 Kicked 1 | . . . . 1 . . . . . Crushed . | . . . . . . . . . . Highest Temperature 281 | 156 . 8 . 109 12 281 249 . 119 Average Temperature 79 | 69 . 4 . 53 7 111 103 . 40 Received Heat Transfer 887 | . 6 177 24 356 18 33 18 . 255 Effects 4 | . . . . . . 1 3 . . Interference 4 | . . . . . . 1 3 . . Siege Activations . | . . . . . . . . . . Martial Activations . | . . . . . . . . . . Shielding Activations . | . . . . . . . . . . Robots Disrupted . | . . . . . . . . . . Combat Hostiles . | . . . . . . . . . . Robots Corrupted 2 | . . . . . . . . . 2 Combat Hostiles 2 | . . . . . . . . . 2 Parts Fried 1 | . . . . . . . . . 1 Impact Corruptions 5 | . . . . . . . . . 5 Robots Melted . | . . . . . . . . . . Combat Hostiles . | . . . . . . . . . . Parts Melted 5 | 4 . . . 1 . . . . . Heat Transferred 629 | 629 . . . . . . . . . Parts Sabotaged . | . . . . . . . . . . Parts Stolen 1 | . . . . . . 1 . . . Parts Stripped . | . . . . . . . . . . Power Chain Reactions . | . . . . . . . . . . Alert | -11 -10 -10 -10 -8 -6 -6 -6 -6 -5 ------- Run | Yrd Mat Min Sub Scr Fac Low Low Dat Pro Maximum Alert Level 1 | . 1 . . . . . . . . Low Security (%) 98 | 100 93 100 . . 100 . . . . Level 1 1 | . 6 . . . . . . . . Level 2 . | . . . . . . . . . . Level 3 . | . . . . . . . . . . Level 4 . | . . . . . . . . . . Level 5 . | . . . . . . . . . . High Security . | . . . . . . . . . . Max Security . | . . . . . . . . . . Peak Influence 215 | 5 215 72 . . 39 . . . . Initial 55 | . 3 55 . . . . . . . Average 42 | 1 120 11 . . 3 . . . . Influence Increases 1213 | 10 392 137 . . 77 30 60 . 507 Destroy 0b10 Robot/C 460 | . 260 60 . . . . . . 140 Destroy 0b10 Robot/NC 60 | 10 20 20 . . 10 . . . . Destroy Leader 74 | . 52 10 . . 2 . . . 10 Allied During Kill 12 | . . . . . . . . . 12 Successful Hack 25 | . . . . . 25 . . . . Disable Machine 60 | . . 45 . . 15 . . . . Destroy Structure 27 | . . 2 . . 25 . . . . Lose Combat Pursuer 495 | . 60 . . . . 30 60 . 345 Influence Decreases 957 | 5 255 279 . . 77 30 60 . 251 Entered New Map 89 | . 2 87 . . . . . . . Time Decay 668 | 5 253 142 . . 77 30 60 . 101 Lost Part 180 | . . 50 . . . . . . 130 Lost Ally 20 | . . . . . . . . . 20 Squads Dispatched 5 | . 3 . . . 1 . . . 1 Investigation 1 | . 1 . . . . . . . . Extermination 1 | . . . . . 1 . . . . Reinforcement 2 | . 2 . . . . . . . . Assault 1 | . . . . . . . . . 1 Garrison . | . . . . . . . . . . Intercept . | . . . . . . . . . . Searches Triggered . | . . . . . . . . . . Construction Impeded . | . . . . . . . . . . Haulers Reinforced . | . . . . . . . . . . Active Scanning Responses . | . . . . . . . . . . Cargo Convoy Interrupts . | . . . . . . . . . . Stealth | -11 -10 -10 -10 -8 -6 -6 -6 -6 -5 --------- Run | Yrd Mat Min Sub Scr Fac Low Low Dat Pro Distress Signals 1 | . 1 . . . . . . . . Communications Jammed . | . . . . . . . . . . Distress Signals . | . . . . . . . . . . Times Spotted 100 | . 25 5 2 13 3 9 4 . 39 Peak Tracking Total 14 | . 9 2 2 3 1 5 4 . 14 Tactical Retreats 16 | . 1 . . . . 2 2 . 11 Traps | -11 -10 -10 -10 -8 -6 -6 -6 -6 -5 ------- Run | Yrd Mat Min Sub Scr Fac Low Low Dat Pro Traps Triggered 1 | . . . . . 1 . . . . Indirectly . | . . . . . . . . . . Trap Hack Attempts . | . . . . . . . . . . Triggered . | . . . . . . . . . . Disarmed . | . . . . . . . . . . Reprogrammed . | . . . . . . . . . . Reused . | . . . . . . . . . . Traps Extracted . | . . . . . . . . . . Installed . | . . . . . . . . . . Triggered . | . . . . . . . . . . Machines | -11 -10 -10 -10 -8 -6 -6 -6 -6 -5 ---------- Run | Yrd Mat Min Sub Scr Fac Low Low Dat Pro Machines Disabled 4 | . . 3 . . 1 . . . . Max in Single Turn 3 | . . 3 . . 1 . . . . Machines Repaired . | . . . . . . . . . . Machines Dismantled . | . . . . . . . . . . Machines Sabotaged . | . . . . . . . . . . Overloaded Fab Kills . | . . . . . . . . . . Hacking | -11 -10 -10 -10 -8 -6 -6 -6 -6 -5 --------- Run | Yrd Mat Min Sub Scr Fac Low Low Dat Pro Machines Accessed 22 | . 4 . . 10 3 1 . 4 . Terminals 7 | . 4 . . . 2 1 . . . Fabricators . | . . . . . . . . . . Repair Stations . | . . . . . . . . . . Recycling Units 1 | . . . . . 1 . . . . Scanalyzers . | . . . . . . . . . . Garrison Access . | . . . . . . . . . . Total Hacks 118 | . 8 . . 73 5 3 . 29 . Successful 109 | . 1 . . 73 3 3 . 29 . Failed 9 | . 7 . . . 2 . . . . Catastrophic 1 | . 1 . . . . . . . . Database Lockouts . | . . . . . . . . . . Manual 16 | . 8 . . 2 6 . . . . Terminals 15 | . 8 . . . 4 3 . . . Fabricators . | . . . . . . . . . . Repair Stations . | . . . . . . . . . . Recycling Units 1 | . . . . . 1 . . . . Scanalyzers . | . . . . . . . . . . Garrison Access . | . . . . . . . . . . Terminal Hacks 107 | . 1 . . 73 1 3 . 29 . Record 79 | . . . . 65 . 3 . 11 . Part Schematic 8 | . . . . . . . . 8 . Robot Schematic 7 | . . . . . . . . 7 . Robot Analysis 7 | . . . . 7 . . . . . Prototype ID Bank 3 | . . . . . . . . 3 . Branch Access Points 1 | . . . . . 1 . . . . Recall Reinforcements 1 | . 1 . . . . . . . . Proto ID Catalog 1 | . . . . 1 . . . . . Fabricator Hacks . | . . . . . . . . . . Repair Station Hacks . | . . . . . . . . . . Recycling Unit Hacks . | . . . . . . . . . . Scanalyzer . | . . . . . . . . . . Garrison Access Hacks . | . . . . . . . . . . Unauthorized Hacks 2 | . . . . . 2 . . . . Terminals 1 | . . . . . 1 . . . . Botnet 1 | . . . . . 1 . . . . Fabricators . | . . . . . . . . . . Repair Stations . | . . . . . . . . . . Recycling Units 1 | . . . . . 1 . . . . Mask 1 | . . . . . 1 . . . . Scanalyzers . | . . . . . . . . . . Garrison Access . | . . . . . . . . . . Data Cores Recovered 1 | . . . . . 1 . . . . Used . | . . . . . . . . . . Hacking Detections 7 | . 4 . . . 2 1 . . . Full Trace Events 2 | . 1 . . . . 1 . . . Feedback Events . | . . . . . . . . . . Feedback Blocked . | . . . . . . . . . . Robot Schematics Acquired 7 | . . . . . . . . 7 . Robots Built . | . . . . . . . . . . Authchips . | . . . . . . . . . . Time . | . . . . . . . . . . Total Robot Build Rating . | . . . . . . . . . . Part Schematics Acquired 8 | . . . . . . . . 8 . Parts Built . | . . . . . . . . . . Authchips . | . . . . . . . . . . Time . | . . . . . . . . . . Total Part Build Rating . | . . . . . . . . . . Parts Repaired . | . . . . . . . . . . Time . | . . . . . . . . . . Parts Recycled . | . . . . . . . . . . Recycled Matter . | . . . . . . . . . . Retrieved Matter . | . . . . . . . . . . Retrieved Components . | . . . . . . . . . . Parts Scanalyzed . | . . . . . . . . . . Part Schematics Acquired . | . . . . . . . . . . Parts Damaged . | . . . . . . . . . . Bothacking | -11 -10 -10 -10 -8 -6 -6 -6 -6 -5 ------------ Run | Yrd Mat Min Sub Scr Fac Low Low Dat Pro Used RIF Installer . | . . . . . . . . . . Robots Hacked . | . . . . . . . . . . Non-combat . | . . . . . . . . . . Combat . | . . . . . . . . . . Robot Hacks Applied . | . . . . . . . . . . Relay Couplers Released . | . . . . . . . . . . Fabnet Peak Effective % . | . . . . . . . . . . Robots Rewired . | . . . . . . . . . . Allies Hacked . | . . . . . . . . . . Hacks Repelled . | . . . . . . . . . . Allies | -11 -10 -10 -10 -8 -6 -6 -6 -6 -5 -------- Run | Yrd Mat Min Sub Scr Fac Low Low Dat Pro Total Allies 1 | . . . . . . . . . 1 Largest Group 1 | . . . . . . . . . 1 Highest-Rated Group 96 | . . . . . . . . . 96 Highest-Rated Ally 96 | . . . . . . . . . 96 Total Orders . | . . . . . . . . . . Ally Attacks 5 | . . . . . . . . . 5 Total Damage 133 | . . . . . . . . . 133 Kills 2 | . . . . . . . . . 2 Allies Corrupted . | . . . . . . . . . . Allies Melted 8 | . . . . 7 . 1 . . . Intel | -11 -10 -10 -10 -8 -6 -6 -6 -6 -5 ------- Run | Yrd Mat Min Sub Scr Fac Low Low Dat Pro Active Infowar (turns) 9268 | 7 689 846 1324 2144 617 1191 555 87 1808 Optics 3792 | . . . . . 151 1191 555 87 1808 Sensors 7779 | . . 104 1324 2144 617 1191 555 87 1757 Seismic 1438 | 7 689 742 . . . . . . . Robot Analysis Total 7 | . . . . 7 . . . . . Derelict Logs Recovered 9 | . . 1 1 2 . 1 1 . 3 Drone Launches . | . . . . . . . . . . Drone Recoveries . | . . . . . . . . . . Exploration | -11 -10 -10 -10 -8 -6 -6 -6 -6 -5 ------------- Run | Yrd Mat Min Sub Scr Fac Low Low Dat Pro Turns Passed 11418 | 73 689 846 1324 4086 622 1191 555 87 1945 Spaces Moved 5836 | 45 400 192 400 1618 462 1086 518 76 1039 Core 158 | 10 . . . . . . . . 148 Treads 2127 | . 4 136 400 1587 . . . . . Legs 130 | . . . . 19 111 . . . . Wheels 499 | 35 396 56 . 12 . . . . . Hover 2778 | . . . . . 351 1086 518 76 747 Flight 144 | . . . . . . . . . 144 Fastest Speed 28 | 50 90 135 320 200 28 32 32 116 32 Average Speed 161 | 92 131 266 320 246 117 92 104 116 84 Slowest Speed 950 | 150 320 320 320 750 950 116 116 116 150 Overloaded Moves . | . . . . . . . . . . Propulsion Burnouts . | . . . . . . . . . . Robots Hopped . | . . . . . . . . . . Potential Cave-ins . | . . . . . . . . . . Cave-ins Triggered . | . . . . . . . . . . Exploration Rate (%) 57 | 3 62 53 37 89 9 97 61 72 90 Regions Visited 9 Branch Regions 7 Pre-discovered Areas 6 | . . . 1 1 . 1 . 1 2 Known Exits Taken 4 | . . . . . 1 1 1 1 . Unknown Exits Taken 5 | 1 1 1 1 1 . . . . . Scrap Searched 33 | . . . 8 11 . 4 9 . 1 Spaces Dug 10 | . . . . . 6 . . . 4 Terrain Destroyed 32 | . . 2 . 3 23 . . . 4 Melee 10 | . . . . . 6 . . . 4 Projectile 3 | . . . . 3 . . . . . AOE 19 | . . 2 . . 17 . . . . Terrain Rammed . | . . . . . . . . . . Walls Destroyed . | . . . . . . . . . . Machines Disabled . | . . . . . . . . . . Actions | -11 -10 -10 -10 -8 -6 -6 -6 -6 -5 --------- Run | Yrd Mat Min Sub Scr Fac Low Low Dat Pro Total 7591 | 60 488 475 419 1698 527 1260 530 75 2059 Wait 1476 | . 34 239 . 33 31 154 11 . 974 Move 5827 | 44 399 191 399 1617 461 1085 517 75 1039 Hop . | . . . . . . . . . . Pick Up 43 | 3 12 8 5 7 2 5 1 . . Fast Attach 19 | 7 . . . 2 3 1 . . 6 Attach 14 | . . 5 . 1 8 . . . . Detach 1 | . . . . 1 . . . . . Swap 38 | . 7 2 4 11 10 3 . . 1 Drop 25 | . . . 1 14 4 4 1 . 1 Fire 101 | 6 36 30 10 11 1 . . . 7 Melee 36 | . . . . . 7 7 . . 22 Ram 9 | . . . . . . . . . 9 Kick 1 | . . . . 1 . . . . . Crush . | . . . . . . . . . . Escape Stasis . | . . . . . . . . . . Rewire . | . . . . . . . . . . Trap . | . . . . . . . . . . Miscellaneous 1 | . . . . . . 1 . . . Route ------- -11/Scrapyard -10/Materials (discovered 3 exits: [*Mat] / [*Min x2]) -10/Mines (discovered 2 exits: [*Mat] / [*Sub]) -10/Subcaves -8/Scraptown (discovered 2 exits: *Fac x2) -6/Factory (discovered 3 exits: Fac / *Low x2) -6/Lower Caves -6/Lower Caves -6/Data Miner -5/Proximity Caves History --------- Turn | Location | Event 23 | -11/Scrapyard | Discovered new exit (range 16) 74 | -11/Scrapyard | Entered Materials 257 | -10/Materials | Destroyed 7 combat bots 302 | -10/Materials | Build established: Mutant 336 | -10/Materials | Discovered new exit (range 16) 498 | -10/Materials | Discovered new exit (range 10) 631 | -10/Materials | Discovered new exit (range 7) 763 | -10/Materials | Entered Mines 770 | -10/Mines | Learned Materials security intel 781 | -10/Mines | Met a Derelict bent on vengeance 783 | -10/Mines | Assembled infested the area 785 | -10/Mines | YI-UF0 nonchalantly dropped a Grenade Launcher on the ground 833 | -10/Mines | Discovered new exit (range 10) 924 | -10/Mines | Lost 5 parts (1p2n2w) 1499 | -10/Mines | Found a damaged Exp. Sensor Array with a note attached 1505 | -10/Mines | Found Prototype Device 1505 | -10/Mines | Identified Exp. Sensor Array 1577 | -10/Mines | Discovered new exit (range 10) 1609 | -10/Mines | Entered Subcaves 1610 | -10/Subcaves | Approached by a straggling Scientist 2513 | -10/Subcaves | Scientist uncovered a shortcut to Scraptown 2933 | -10/Subcaves | Entered Scraptown 3376 | -8/Scraptown | Heard Great Nut preacher, LISTEN AND RECITE! 3407 | -8/Scraptown | Visited UFD Registry 3407 | -8/Scraptown | Registered with UFD as "Spikeflow" 3465 | -8/Scraptown | Visited Cyclists 3505 | -8/Scraptown | Entered Cyclist Reading Room 3541 | -8/Scraptown | Visited Junk Repository 3642 | -8/Scraptown | Scanned Subdweller tech in exchange for log data 3647 | -8/Scraptown | Learned Factory emergency access door positions 3649 | -8/Scraptown | Learned location of 1 exit from Factory 3676 | -8/Scraptown | Discovered new exit (range 13) 3753 | -8/Scraptown | Guru changed UFD alias to "Megaglider" 4717 | -8/Scraptown | Visited Science Testing Area 4741 | -8/Scraptown | Visited Shadow of the Wyrm 4840 | -8/Scraptown | Visited SPCMW 4900 | -8/Scraptown | Visited Cave Peace 4972 | -8/Scraptown | Visited Bundlers 5252 | -8/Scraptown | Visited Derelict Rescue Squad 5277 | -8/Scraptown | Found DRS Beacon 5386 | -8/Scraptown | Visited LU-1G1's Boring Crew 5434 | -8/Scraptown | Visited Science Guys 5868 | -8/Scraptown | Visited Curators Association 5957 | -8/Scraptown | Visited Analyses Database 6007 | -8/Scraptown | Received an X-ray algorithm 6051 | -8/Scraptown | Ran an X-ray algorithm 6115 | -8/Scraptown | Ran an X-ray algorithm 6168 | -8/Scraptown | Met Optimus 6168 | -8/Scraptown | Accepted into 0bPrime 6329 | -8/Scraptown | Visited Scrapoid Research Area 6365 | -8/Scraptown | Visited Chapter 10 6469 | -8/Scraptown | Civil war broke out across Scraptown 6481 | -8/Scraptown | Found Scrap Suit 6522 | -8/Scraptown | Lost 5 allies 6615 | -8/Scraptown | Core integrity fell below 50% 6659 | -8/Scraptown | Discovered new exit (range 5) 6666 | -8/Scraptown | Lost 3 allies 6768 | -8/Scraptown | Optimus destroyed in the chaos of civil war 6769 | -8/Scraptown | Visited DA-N13 Charitable Foundation 6797 | -8/Scraptown | Found DCF Scrap (27 items) 6860 | -8/Scraptown | Lost 11 allies 7019 | -8/Scraptown | Entered Factory 7019 | -6/Factory | Evolved 8 slots: Power x1, Propulsion x2, Utility x5 7020 | -6/Factory | Identified exit to Factory 7312 | -6/Factory | Build established: Scavenger-Mutant 7320 | -6/Factory | Ran an X-ray algorithm 7529 | -6/Factory | Identified exit to Lower Caves 7641 | -6/Factory | Entered Lower Caves 7645 | -6/Lower Caves | Activated DRS Beacon 7872 | -6/Lower Caves | Spotted B-75 Beast 7955 | -6/Lower Caves | Found DCF Scrap (12 items) 8014 | -6/Lower Caves | Discovered new exit (range 5) 8232 | -6/Lower Caves | Ambushed by wild Derelicts 8391 | -6/Lower Caves | Lost 3 allies 8558 | -6/Lower Caves | Build established: Assassin 8831 | -6/Lower Caves | Identified exit to Lower Caves 8832 | -6/Lower Caves | Entered another Lower Caves area 8887 | -6/Lower Caves | Encountered a Warlord checkpoint 8904 | -6/Lower Caves | Learned 8 Factory zone layouts 9371 | -6/Lower Caves | Discovered new exit (range 5) 9374 | -6/Lower Caves | Identified exit to Data Miner 9387 | -6/Lower Caves | Entered Data Miner 9387 | -6/Data Miner | Discovered new exit (range 6) 9405 | -6/Data Miner | Met Data Miner 9429 | -6/Data Miner | Learned location of Section 7 (-2) 9429 | -6/Data Miner | Acquired the access code to Warlord's prototype stash 9449 | -6/Data Miner | Received God Mode back door access code from Data Miner 9473 | -6/Data Miner | Identified exit to Proximity Caves 9474 | -6/Data Miner | Entered Proximity Caves 9476 | -5/Proximity Caves | Attracted the attention of an 0b10 checkpoint 10278 | -5/Proximity Caves | Build established: Derelict-Assassin 11273 | -5/Proximity Caves | Lost 6 parts (2p2n1u1w) 11309 | -5/Proximity Caves | Attracted the attention of an 0b10 outpost 11379 | -5/Proximity Caves | Learned location of Armory (-4) 11386 | -5/Proximity Caves | Core integrity fell below 50% 11386 | -5/Proximity Caves | Learned Factory stockpile data 11399 | -5/Proximity Caves | Spotted B-75 Beast 11410 | -5/Proximity Caves | Escorted by Enhanced Grunt 11415 | -5/Proximity Caves | Core integrity fell below 20% 11419 | -5/Proximity Caves | Destroyed by G-50 Soldier with Heavy Laser Last Messages --------------- 11371_ Acquired Cesium-ion Thruster. 11374_ Lgt. Ion Engine fries itself beyond repair. 11375_ Acquired Propulsion Shielding. 11375_ Segregator destroyed. 11379_ Acquired derelict log, extracted data. World map updated: -4/Armory. 11386_ Acquired derelict log, extracted data. Data stored: Factory stockpile data. 11390_ System corrupted: IFF burst signal emitted. 11394_ Cesium-ion Thruster destroyed. 11400_ Knocked back. 11410_ Enhanced Grunt: "Protecting LRC-V3." 11410_ S-27 Virus destroyed. 11411_ Autogun fries itself beyond repair. 11411_ Enhanced Grunt destroyed. 11414_ VTOL Module fries itself beyond repair. 11415_ Acquired VTOL Module. 11418_ Critical hit (Burn: +37). Map ----- +----------------------------------------------------+ | ????????# ##??????????????????????????????????? | | ????????# #??????????????????????????????????? | | ????????# #??????????????????????????????????? | | ????????# ###??????????????????????????????????? | | ????????## #????????????????????????????????????? | | ?????????# #????????????????????????????????????? | | ?????????# ###??????????????????????????????????? | | ?????????# ##?????????????????????????????????? | | ###??????# #?????????????????????????????????? | | # #??????# #?????????????????????????????????? | | #??????# #???????####??????????????########? | | ##?????# #??????## #####??????????# #? | | #?????## #??????# ##?????????# #? | | #??????# ##??????# #?????????# #?? | | ##?????# ##???????# #???????#### ##? | | ####### #??????## ####??????## ## | | ## #??##### ########### # | | #??# ## ### | | ## ##?# #######?? | | #### ### ## ##### ##??????? | | ##??### ##%## ##???# #??????? | | ##?#### ##%## ###### ## #??????? | | ### ####%## ## ##??????? | | ###??#%## ## ## #???????? | | ##????#%## ##### #???????? | | ## ########?#%####g@## #??## #???????? | | ## #?## ###%#??# ### #?## ###?????? | | #?# %"#?## #?## ##?# ##### # | | ## ### ######gg ##?#####?## | | ### ## ##??## g ##???#### | | #?## ##???# #??## ## #### | | #?## ###????##]! ###?## #?# ##????? | | #########???????##%!##???# ######?????? | | #???????#####??##!=###### #???????? | | # #???????# #?## ?? | | # ##???????# ### %s% ? | | ####?????????# ## s#;######## ## | | ##?????????????# s##; #?????# ##??? | | #?????????????## ### ????# ???? | | #??????????????## ##?? ??? #???? | | #??????#######??# "#??## ? ##### #???? | | #?????## ## %#### ##????## #???? #???? | | ###?????# ## ##?????? #????? ???? | | ????????## #??????? ##?????? ??? | | ?????????###"#" %#?????? ######???????????? | | ??????????# #?????? #????????????????? | | ??????????# ##????????#?????????????????? | | ??????????# ## ##???????????????????????????? | | ??????????# ####????????????????????????????? | | ??????????# #???????????????????????????????? | +----------------------------------------------------+ Best States ------------- Heat Dissipation 51 Energy Generation 31 Energy Capacity 520 Matter Stores 300 Matter Capacity 300 Sight Range 20 Robot Scan Range 20 Terrain Scan Density 10 Additional Mass Support 9 Armor Coverage 225 Propulsion Shielding 33 Evasion (%) 63 Recoil Reduction 2 Offensive Hacking 12 Item Schematics ----------------- Combat Drone Bay | -6/Data Miner | Free Lgt. Regenerative Plating | -6/Data Miner | Free Cld. Gravmag System | -6/Data Miner | Free Imp. Matter Compressor | -6/Data Miner | Free Thunder Hammer | -6/Data Miner | Free Myomer Leg | -6/Data Miner | Free Imp. Cloaking Device | -6/Data Miner | Free Matter Neutralizer | -6/Data Miner | Free Robot Schematics ------------------ R-10 Processor | -6/Data Miner | Free E-15 Imp | -6/Data Miner | Free M-22 Extractor | -6/Data Miner | Free B-60 Warrior | -6/Data Miner | Free A-15 Conveyor | -6/Data Miner | Free Y-64 Sentinel | -6/Data Miner | Free G-50 Soldier | -6/Data Miner | Free Fabricated ------------ Nothing Repaired ---------- Nothing Alien Tech Used ----------------- None Achievements -------------- Armchair Analyst Challenges ------------ None Game ------ Seed AccelerationMiningExtractor Manual? 0 Play Time 01:43:36 Cumulative 60.5 hours Start 2025.09.21 @ 15:57:40 End 2025.09.21 @ 17:48:47 Sessions 1 Manual Loads 0 Difficulty Rogue Special Mode None Game No. 40 Rogue 40 Adventurer 0 Explorer 0 Win Type - Total 0 Types 0/0/0/0/0/0/0/0/0/0 Lore% 24 Gallery% 38 Achievement% 35 Wizard Run 0 Options --------- Layout 1 ASCII 0 Keyboard 1 Movement Arrows Keybinds 0 Fullscreen 1 Font 24/Smallcaps Map View 50x35 Zoom Use 0% Tactical HUD 1 Map Filters NONE Filters NONE Steam 1 RUN: 1121bdcd-323f-4e59-8d35-a7da4862b45b